[Event "Czech Extraliga 2023-24"]
[Site "Czech Republic"]
[Date "2024.01.28"]
[Round "6.1"]
[White "KRO3 Kozak Adam GM"]
[Black "PAR3 Neugebauer Martin IM"]
[Result "1/2-1/2"]
[ECO "A21"]
[WhiteElo "2566"]
[BlackElo "2529"]
[Annotator "RC"]
[PlyCount "183"]
[EventDate "2023.10.14"]
[EventCountry "CZE"]
[SourceTitle "playchess.com"]
[Source "ChessBase"]
[SourceQuality "1"]
[TimeControl "40/5400+30:1800+30"]

1. c4 {[%emt 0:00:03]} d6 {[%emt 0:01:33]} 2. Nc3 {[%emt 0:03:56]} e5 {[%emt 0:01:03]} 3. g3 {[%emt 0:04:00]} f5 {[%emt 0:01:05]} 4. d4 {[%emt 0:02:27]} Be7 {[%emt 0:09:30]} 5. Bg2 {[%emt 0:09:25]} Nf6 {[%emt 0:01:24]} 6. Nf3 {[%emt 0:07:48]} e4 {[%emt 0:05:30]} 7. Ng5 {[%emt 0:01:26]} c6 {[%emt 0:04:23]} 8. d5 {[%emt 0:05:30]} Ng4 {[%emt 0:12:29]} 9. Nh3 {[%emt 0:05:22]} Ne5 {[%emt 0:03:56]} 10. b3 {[%emt 0:01:22]} Bf6 {[%emt 0:03:55]} 11. Bd2 {[%emt 0:00:46]} O-O {[%emt 0:03:33]} 12. O-O {[%emt 0:00:12]} Re8 {[%emt 0:06:44]} 13. Rc1 {[%emt 0:07:33]} Nbd7 {[%emt 0:13:56]} 14. Nf4 {[%emt 0:03:48]} Nf8 {[%emt 0:00:38]} 15. dxc6 {[%emt 0:03:27]} bxc6 {[%emt 0:01:17]} 16. Be3 {[%emt 0:00:11]} Ne6 {[%emt 0:03:04]} 17. Qd2 {[%emt 0:06:08]} Ng4 {[%emt 0:02:53]} 18. Nxe6 {[%emt 0:02:41]} Rxe6 {[%emt 0:03:03]} 19. Bf4 {[%emt 0:09:47]} g5 {[%emt 0:00:55]} 20. Be3 {[%emt 0:01:24]} Nxe3 {[%emt 0:00:39]} 21. fxe3 {[%emt 0:01:30]} Bxc3 {[%emt 0:07:22]} 22. Qxc3 {[%emt 0:01:21]} Re5 {[%emt 0:00:34]} 23. Rcd1 {[%emt 0:04:19]} Qe7 {[%emt 0:00:59]} 24. Qb4 {[%emt 0:02:12]} c5 {[%emt 0:06:02]} 25. Qd2 {[%emt 0:01:01]} Be6 {[%emt 0:02:12]} 26. Qxd6 {[%emt 0:02:39]} Qxd6 {[%emt 0:01:04]} 27. Rxd6 {[%emt 0:00:01]} a5 {[%emt 0:02:37]} 28. Rfd1 {[%emt 0:01:14]} a4 {[%emt 0:00:42]} 29. Rb6 {[%emt 0:00:40]} axb3 {[%emt 0:00:28]} 30. axb3 {[%emt 0:00:02]} Kf7 {[%emt 0:01:20]} 31. Rb7+ {[%emt 0:06:43]} Kg6 {[%emt 0:00:05]} 32. Rd6 {[%emt 0:00:13]} Re8 {[%emt 0:00:31]} 33. Rc6 {[%emt 0:01:11]} Rc8 {[%emt 0:00:51]} 34. Ra6 {[%emt 0:00:28]} h5 {[%emt 0:00:39]} 35. Raa7 {[%emt 0:05:17]} Rh8 {[%emt 0:00:24]} 36. Kf2 {[%emt 0:00:47]} h4 {[%emt 0:00:30]} 37. h3 {[%emt 0:01:11]} hxg3+ {[%emt 0:00:25]} 38. Kxg3 {[%emt 0:00:01]} Kf6 {[%emt 0:00:11]} 39. Rc7 {[%emt 0:01:20]} Rb8 {[%emt 0:00:40]} 40. Rh7 {[%emt 0:00:32]} Kg6 {[%emt 0:00:17]} 41. Rab7 {[%emt 0:14:15]} Rxb7 {[%emt 0:01:49]} 42. Rxb7 {[%emt 0:00:07]} Bf7 {[%emt 0:02:44]} 43. h4 {[%emt 0:01:02]} Be8 {[%emt 0:03:48]} 44. Rb6+ {[%emt 0:06:21]} Kh5 {[%emt 0:00:28]} 45. Rf6 {[%emt 0:04:38]} Bg6 {[%emt 0:00:43]} 46. Rd6 {[%emt 0:01:26]} Bf7 {[%emt 0:03:09]} 47. Rd7 {[%emt 0:01:01]} Be8 {[%emt 0:00:56]} 48. Rd8 {[%emt 0:00:49]} Kh6 {[%emt 0:01:06]} 49. Rd6+ {[%emt 0:02:03]} Kh5 {[%emt 0:00:44]} 50. Bh3 {[%emt 0:00:19]} Bg6 {[%emt 0:01:17]} 51. Rd8 {[%emt 0:00:29]} Kh6 {[%emt 0:00:22]} 52. Rc8 {[%emt 0:02:02]} Bf7 {[%emt 0:00:48]} 53. Ra8 {[%emt 0:01:20]} Bg6 {[%emt 0:01:13]} 54. Ra5 {[%emt 0:00:57]} Bf7 {[%emt 0:01:03]} 55. Ra6+ {[%emt 0:00:29]} Kh5 {[%emt 0:00:31]} 56. Rf6 {[%emt 0:00:40]} Bg6 {[%emt 0:00:04]} 57. Rc6 {[%emt 0:00:26]} Kh6 {[%emt 0:00:32]} 58. Rc8 {[%emt 0:00:34]} Bf7 {[%emt 0:00:11]} 59. Rh8+ {[%emt 0:00:14]} Kg7 {[%emt 0:00:07]} 60. Ra8 {[%emt 0:00:20]} Kh6 {[%emt 0:00:23]} 61. Ra7 {[%emt 0:00:32]} Bg6 {[%emt 0:00:18]} 62. Ra5 {[%emt 0:00:55]} Bf7 {[%emt 0:00:23]} 63. Rb5 {[%emt 0:00:27]} Kh5 {[%emt 0:00:35]} 64. Rb7 {[%emt 0:00:34]} Bg6 {[%emt 0:00:10]} 65. Rc7 {[%emt 0:00:29]} Kh6 {[%emt 0:00:15]} 66. Ra7 {[%emt 0:00:09]} Kh5 {[%emt 0:00:21]} 67. Ra8 {[%emt 0:00:23]} Kh6 {[%emt 0:00:08]} 68. Rb8 {[%emt 0:00:29]} Bf7 {[%emt 0:00:57]} 69. Rf8 {[%emt 0:00:05]} Bg6 {[%emt 0:00:41]} 70. Rf6 {[%emt 0:01:24]} Kh5 {[%emt 0:00:11]} 71. Rd6 {[%emt 0:00:31]} Kh6 {[%emt 0:00:22]} 72. Rd7 {[%emt 0:00:29]} Kh5 {[%emt 0:00:23]} 73. Rd1 {[%emt 0:00:30]} Kh6 {[%emt 0:01:01]} 74. Rb1 {[%emt 0:00:30]} Kh5 {[%emt 0:01:56]} 75. Rf1 {[%emt 0:00:30]} Kh6 {[%emt 0:00:35]} 76. Ra1 {[%emt 0:00:29]} Kh5 {[%emt 0:00:28]} 77. Rb1 {[%emt 0:00:18]} Re7 {[%emt 0:03:45]} 78. hxg5 {[%emt 0:00:29]} Kxg5 {[%emt 0:00:05]} 79. Ra1 {[%emt 0:00:22]} Rb7 {[%emt 0:00:58]} 80. Ra3 {[%emt 0:00:23]} Rb6 {[%emt 0:00:22]} 81. Kf2 {[%emt 0:00:10]} Kf6 {[%emt 0:00:30]} 82. Ke1 {[%emt 0:00:43]} Bf7 {[%emt 0:00:52]} 83. Kd2 {[%emt 0:00:24]} Rb8 {[%emt 0:01:51]} 84. Bf1 {[%emt 0:00:46]} Be6 {[%emt 0:00:20]} 85. Ke1 {[%emt 0:00:57]} Rb6 {[%emt 0:00:19]} 86. Kd1 {[%emt 0:00:30]} Rb8 {[%emt 0:00:14]} 87. Kd2 {[%emt 0:00:12]} Rd8+ {[%emt 0:00:16]} 88. Ke1 {[%emt 0:00:34]} Rb8 {[%emt 0:00:04]} 89. Kf2 {[%emt 0:00:16]} Rb7 {[%emt 0:00:11]} 90. Bh3 {[%emt 0:00:27]} Rh7 {[%emt 0:00:05]} 91. Bg2 {[%emt 0:00:08]} Rb7 {[%emt 0:00:05]} 92. Bf1 {[%emt 0:00:34]} 1/2-1/2

[Event "Czech Extraliga 2023-24"]
[Site "Czech Republic"]
[Date "2024.01.28"]
[Round "6.2"]
[White "UNI2 Michalik Peter GM"]
[Black "LYS3 Samunenkov Ihor IM"]
[Result "0-1"]
[ECO "D37"]
[WhiteElo "2576"]
[BlackElo "2531"]
[Annotator "TA"]
[PlyCount "72"]
[EventDate "2023.10.14"]
[EventCountry "CZE"]
[SourceTitle "playchess.com"]
[Source "ChessBase"]
[SourceQuality "1"]
[TimeControl "40/5400+30:1800+30"]

{[%evp 9,72,10,4,0,15,0,0,19,8,7,7,1,12,-12,-6,0,0,-25,-25,-19,-22,-18,-10,-16,-12,-27,-9,-17,-12,-28,-14,-37,-38,-58,-55,-67,-51,-82,-102,-106,-85,-82,-92,-91,-58,-98,0,0,0,0,0,0,181,-46,-39,-2817,-2683,-29995,-29996,-29997,-29998,-29998,-29991,-29997,129]} 1. d4 {[%emt 0:04:35]} d5 {[%emt 0:00:18]} 2. c4 {[%emt 0:00:07][%cal Bc2c4,Bc4c5,Bc5b6][%mdl 32]} e6 {[%emt 0:00:06]} 3. Nf3 {[%emt 0:00:12]} Nf6 {[%emt 0:00:15]} 4. Nc3 {[%emt 0:00:08]} a6 {[%emt 0:00:12]} 5. c5 {[%emt 0:04:26]} b6 {[%emt 0:00:16]} 6. cxb6 {[%emt 0:00:08]} c5 {[%emt 0:00:09]} 7. Bf4 {[%emt 0:01:49]} Bd6 {[%emt 0:00:25]} 8. Bxd6 {[%emt 0:00:58] The position is equal.} Qxd6 {[%emt 0:00:09]} 9. dxc5 {[%emt 0:00:11]} Qxc5 {[%emt 0:00:08]} 10. Qd4 {[%emt 0:00:08]} Qd6 {[%emt 0:01:12]} 11. Ne5 {[%emt 0:11:51]} Nbd7 {[%emt 0:10:34]} 12. Nxd7 {[%emt 0:08:05]} Bxd7 {[%emt 0:03:25]} 13. e3 {[%emt 0:03:21]} O-O {[%emt 0:05:05]} 14. Qd2 {[%emt 0:18:44]} Rfb8 {[%emt 0:13:08]} 15. Be2 {[%emt 0:02:21]} Rxb6 {[%emt 0:02:14]} 16. O-O {[%emt 0:05:38]} Rab8 {[%emt 0:03:12]} 17. b3 {[%emt 0:01:27]} Rb4 {[%emt 0:00:55]} 18. Rfd1 {[%emt 0:06:20]} h5 {[%emt 0:11:13]} 19. Bf3 {[%emt 0:01:53][%cal Oe3e4]} a5 {[%emt 0:06:29]} 20. e4 {[%emt 0:06:07]} d4 {[%emt 0:05:52]} (20... Nxe4 $2 21. Nxe4 Qe7 22. Nc3 $18) 21. Ne2 {[%emt 0:00:36]} e5 {[%emt 0:00:55]} 22. Nc1 {[%emt 0:00:05]} Bc6 {[%emt 0:05:20]} 23. Nd3 {[%emt 0:03:04]} Bxe4 $1 {[%emt 0:07:03]} (23... Nxe4 24. Bxe4 Bxe4 25. Nxb4 axb4 26. Re1 $11) 24. Nxb4 {[%emt 0:02:56]} axb4 {[%emt 0:00:08] White is weak on the dark squares} 25. Be2 {[%emt 0:11:04]} Nd5 {[%emt 0:02:47][%mdl 1024] Black has strong compensation.} 26. Re1 {[%emt 0:02:44]} Qg6 {[%emt 0:07:04][%csl Ge4][%cal Rg6g2]} (26... Bg6 {simplifies} 27. Bd3 Bxd3 28. Qxd3 Nc3) 27. f3 {[%emt 0:00:57] [#]} Nf4 $1 {[%emt 0:06:03] Black is more active.} 28. Bd1 {[%emt 0:00:49]} (28. fxe4 $2 Qxg2#) 28... Bc6 $40 {[%emt 0:07:47][%mdl 128] Black has some attack.} (28... Qg5 $6 29. Kh1 Ba8 30. g3 $14) 29. Rxe5 {[%emt 0:00:19]} Qf6 {[%emt 0:00:16]} 30. Rc5 {[%emt 0:02:31][%cal Oc5c6]} (30. Qxd4 $2 Rd8 31. Qe3 (31. Qxb4 Qxe5 32. h3 Qxa1 33. Qxf4 Rxd1+ 34. Kf2 Rf1+ 35. Ke2 Bb5+) 31... Rd3 $19) 30... Bd7 {[%emt 0:00:47]} (30... d3 $11 {and Black is okay.} 31. Rac1 Bd5) 31. Rc4 $2 {[%emt 0:00:54]} (31. Rac1 $18) 31... Re8 $15 {[%emt 0:01:53] Strongly threatening ...Qg5.} 32. Qxd4 $2 {[%emt 0:01:30][%mdl 8192] [#] White does not recover from this.} (32. Rxb4 $2 {loses.} Qg5 $19) (32. Rxd4 $2 Re1+ 33. Qxe1 (33. Kf2 $2 Qh4+ 34. g3 Qxh2+ 35. Kxe1 Qg1#) 33... Qxd4+ 34. Qf2 Qxa1 $19) (32. g3 $15 d3 33. Rxf4 Qxa1 34. Rxb4) 32... Qh4 $1 $19 {[%emt 0:00:34][%cal Re8e1]} 33. g3 {[%emt 0:00:10] [#]} (33. Qe4 Rxe4) 33... Qh3 $1 {[%emt 0:00:29][%csl Gf4][%cal Rh3g2] Black mates.} 34. gxf4 {[%emt 0:00:48]} Re1+ {[%emt 0:00:20]} 35. Kf2 {[%emt 0:00:06]} Qf1+ {[%emt 0:00:07]} 36. Kg3 {[%emt 0:00:05] [#]} h4+ $1 {[%emt 0:00:20][%mdl 33280] Weighted Error Value: White=0.43/Black=0.15 (very precise) .  Loses game:     	White=1     	Black=1      Missed win:     	White=1     	---        Mistake:       	---       	Black=1      Inaccurate:     	White=2     	Black=1      OK:         	White=8     	Black=10     Best:        	White=2     	Black=3      Strong:       	---       	Black=2     . Loss on time!?} 0-1

[Event "Czech Extraliga 2023-24"]
[Site "Czech Republic"]
[Date "2024.01.28"]
[Round "6.2"]
[White "PAR4 Hracek Zbynek GM"]
[Black "KRO4 Gonda Laszlo GM"]
[Result "1/2-1/2"]
[ECO "E11"]
[WhiteElo "2550"]
[BlackElo "2494"]
[Annotator "TA"]
[PlyCount "29"]
[EventDate "2023.10.14"]
[EventCountry "CZE"]
[SourceTitle "playchess.com"]
[Source "ChessBase"]
[SourceQuality "1"]
[TimeControl "40/5400+30:1800+30"]

{[%evp 11,29,5,18,-3,-9,-2,9,0,7,0,27,10,33,23,27,28,37,-3,-20,-75]} 1. d4 {[%emt 0:00:03]} d5 {[%emt 0:00:13]} 2. c4 {[%emt 0:00:06]} e6 {[%emt 0:00:04]} 3. Nf3 {[%emt 0:00:28]} Nf6 {[%emt 0:00:07]} 4. g3 {[%emt 0:00:10]} Bb4+ {[%emt 0:00:36]} 5. Bd2 {[%emt 0:00:32]} Be7 {[%emt 0:00:27]} 6. Bg2 {[%emt 0:00:09]} O-O {[%emt 0:01:10]} 7. Bf4 {[%emt 0:01:03]} Nbd7 {[%emt 0:18:13]} 8. Qc2 {[%emt 0:01:11]} c6 {[%emt 0:06:43]} 9. h4 {[%emt 0:00:41]} a5 {[%emt 0:18:32]} 10. Nbd2 {[%emt 0:17:00]} Re8 {[%emt 0:06:55]} 11. O-O {[%emt 0:06:05]} Nh5 {[%emt 0:03:59]} 12. Bg5 {[%emt 0:03:08]} f6 {[%emt 0:01:42]} 13. Be3 {[%emt 0:02:12] [#] Black must now prevent g4.} Bd6 {[%emt 0:00:24]} 14. Bh3 {[%emt 0:03:46]} Qe7 {[%emt 0:06:03]} 15. Nb3 {[%emt 1:01:26] Weighted Error Value: White=0.11 (very precise) /Black=0.10 (very precise) .  Mistake:       	White=1     	---        Inaccurate:     	White=1     	Black=1      OK:         	White=4     	Black=3} (15. Rfd1 $11) 1/2-1/2

[Event "Czech Extraliga 2023-24"]
[Site "Czech Republic"]
[Date "2024.01.28"]
[Round "6.2"]
[White "LIN2 Stocek Jiri GM"]
[Black "TUR3 Kantans Toms GM"]
[Result "1/2-1/2"]
[ECO "D97"]
[WhiteElo "2535"]
[BlackElo "2483"]
[Annotator "RC"]
[PlyCount "155"]
[EventDate "2023.10.14"]
[EventCountry "CZE"]
[SourceTitle "playchess.com"]
[Source "ChessBase"]
[SourceQuality "1"]
[TimeControl "40/5400+30:1800+30"]

1. d4 {[%emt 0:00:35]} Nf6 {[%emt 0:00:09]} 2. Nf3 {[%emt 0:00:07]} g6 {[%emt 0:00:34]} 3. c4 {[%emt 0:00:10]} Bg7 {[%emt 0:00:08]} 4. Nc3 {[%emt 0:00:06]} d5 {[%emt 0:00:07]} 5. Qb3 {[%emt 0:00:51]} dxc4 {[%emt 0:03:33]} 6. Qxc4 {[%emt 0:00:09]} O-O {[%emt 0:04:39]} 7. e4 {[%emt 0:00:22]} a6 {[%emt 0:00:39]} 8. Be2 {[%emt 0:04:44]} b5 {[%emt 0:03:33]} 9. Qd3 {[%emt 0:01:44]} c5 {[%emt 0:04:48]} 10. dxc5 {[%emt 0:00:29]} Bb7 {[%emt 0:06:44]} 11. Be3 {[%emt 0:06:18]} b4 {[%emt 0:07:07]} 12. Na4 {[%emt 0:05:57]} Qxd3 {[%emt 0:14:32]} 13. Bxd3 {[%emt 0:00:13]} Bxe4 {[%emt 0:00:08]} 14. Bxe4 {[%emt 0:07:24]} Nxe4 {[%emt 0:01:00]} 15. Ke2 {[%emt 0:05:06]} Nc6 {[%emt 0:00:39]} 16. Rhd1 {[%emt 0:07:23]} f5 {[%emt 0:07:30]} 17. Rac1 {[%emt 0:02:53]} Rad8 {[%emt 0:01:38]} 18. g3 {[%emt 0:14:02]} Kf7 {[%emt 0:07:26]} 19. Ne1 {[%emt 0:05:40]} Bd4 {[%emt 0:06:36]} 20. Nd3 {[%emt 0:04:59]} Bxe3 {[%emt 0:05:39]} 21. Kxe3 {[%emt 0:00:24]} e5 {[%emt 0:00:24]} 22. Nb6 {[%emt 0:03:00]} Nf6 {[%emt 0:04:20]} 23. f3 {[%emt 0:05:09]} e4 {[%emt 0:04:39]} 24. Nf2 {[%emt 0:01:18]} exf3 {[%emt 0:01:16]} 25. Kxf3 {[%emt 0:03:04]} Rfe8 {[%emt 0:11:36]} 26. Nc4 {[%emt 0:02:34]} Rxd1 {[%emt 0:00:06]} 27. Rxd1 {[%emt 0:00:57]} Re6 {[%emt 0:00:21]} 28. Nh3 {[%emt 0:05:15]} Ne5+ {[%emt 0:00:23]} 29. Nxe5+ {[%emt 0:00:13]} Rxe5 {[%emt 0:00:02]} 30. Rc1 {[%emt 0:01:50]} Ke7 {[%emt 0:00:31]} 31. Nf4 {[%emt 0:04:25]} Kd7 {[%emt 0:03:37]} 32. Nd3 {[%emt 0:01:04]} Re4 {[%emt 0:00:22]} 33. c6+ {[%emt 0:00:38]} Kc8 {[%emt 0:01:05]} 34. Nc5 {[%emt 0:01:09]} Rd4 {[%emt 0:00:34]} 35. h3 {[%emt 0:04:37]} a5 {[%emt 0:00:42]} 36. b3 {[%emt 0:00:33]} Rd6 {[%emt 0:00:49]} 37. Nb7 {[%emt 0:00:43]} Rd5 {[%emt 0:00:01]} 38. c7 {[%emt 0:01:25]} Ne8 {[%emt 0:00:49]} 39. Nd8 {[%emt 0:00:57]} Rd6 {[%emt 0:00:34]} 40. Nc6 {[%emt 0:01:28]} Nxc7 {[%emt 0:00:16]} 41. Nxa5 {[%emt 0:30:27]} Kd7 {[%emt 0:01:48]} 42. Nc4 {[%emt 0:00:00]} Rd3+ {[%emt 0:05:02]} 43. Kf2 {[%emt 0:00:00]} Ke6 {[%emt 0:01:44]} 44. Re1+ {[%emt 0:00:00]} Kf6 {[%emt 0:00:51]} 45. Re3 {[%emt 0:00:00]} Rd1 {[%emt 0:00:58]} 46. Re1 {[%emt 0:00:00]} Rd8 {[%emt 0:03:17]} 47. Re5 {[%emt 0:00:00]} Nd5 {[%emt 0:02:09]} 48. g4 {[%emt 0:00:00]} Nf4 {[%emt 0:04:01]} 49. Kg3 {[%emt 0:00:00]} Rd4 {[%emt 0:03:00]} 50. Re8 {[%emt 0:01:24]} Ne6 {[%emt 0:03:14]} 51. gxf5 {[%emt 0:00:13]} Rd3+ {[%emt 0:01:17]} 52. Kf2 {[%emt 0:00:54]} gxf5 {[%emt 0:00:06]} 53. Ne3 {[%emt 0:00:55]} Rd2+ {[%emt 0:04:17]} 54. Ke1 {[%emt 0:00:14]} Rxa2 {[%emt 0:00:47]} 55. Nd5+ {[%emt 0:00:39]} Ke5 {[%emt 0:00:42]} 56. Nc7 {[%emt 0:00:27]} Kd6 {[%emt 0:03:29]} 57. Nxe6 {[%emt 0:00:17]} Kd7 {[%emt 0:00:05]} 58. Ng7 {[%emt 0:00:17]} Rg2 {[%emt 0:00:06]} 59. Ra8 {[%emt 0:00:22]} Rg3 {[%emt 0:01:30]} 60. Ra7+ {[%emt 0:00:53]} Kc6 {[%emt 0:00:12]} 61. h4 {[%emt 0:02:26]} Rxb3 {[%emt 0:01:57]} 62. Nxf5 {[%emt 0:00:10]} Kd5 {[%emt 0:00:26]} 63. Kd2 {[%emt 0:00:33]} h5 {[%emt 0:00:52]} 64. Rh7 {[%emt 0:00:53]} Ke4 {[%emt 0:00:29]} 65. Rxh5 {[%emt 0:00:15]} Rb2+ {[%emt 0:00:30]} 66. Kc1 {[%emt 0:00:33]} Rh2 {[%emt 0:00:13]} 67. Ne7 {[%emt 0:00:55]} Kd3 {[%emt 0:00:50]} 68. Rh8 {[%emt 0:00:37]} Kc3 {[%emt 0:01:02]} 69. Rc8+ {[%emt 0:00:33]} Kb3 {[%emt 0:00:00]} 70. Nf5 {[%emt 0:00:13]} Rh1+ {[%emt 0:00:14]} 71. Kd2 {[%emt 0:00:05]} Ka2 {[%emt 0:00:33]} 72. Ra8+ {[%emt 0:00:37]} Kb2 {[%emt 0:00:05]} 73. Ra4 {[%emt 0:01:03]} Kb3 {[%emt 0:00:24]} 74. Ra5 {[%emt 0:00:10]} Kb2 {[%emt 0:00:02]} 75. Kd3 {[%emt 0:01:07]} b3 {[%emt 0:01:09]} 76. Kc4 {[%emt 0:00:14]} Rh3 {[%emt 0:00:49]} 77. Re5 {[%emt 0:00:55]} Ka2 {[%emt 0:00:11]} 78. Ra5+ {[%emt 0:00:34]} 1/2-1/2

[Event "Czech Extraliga 2023-24"]
[Site "Czech Republic"]
[Date "2024.01.28"]
[Round "6.2"]
[White "BSS3 Krzyzanowski Marcin GM"]
[Black "NOV3 Harikrishna Pentala GM"]
[Result "1/2-1/2"]
[ECO "C47"]
[WhiteElo "2512"]
[BlackElo "2716"]
[Annotator "TA"]
[PlyCount "64"]
[EventDate "2023.10.14"]
[EventCountry "CZE"]
[SourceTitle "playchess.com"]
[Source "ChessBase"]
[SourceQuality "1"]
[TimeControl "40/5400+30:1800+30"]

{[%evp 24,64,12,4,12,11,1,6,8,2,6,7,8,11,8,8,18,18,33,25,32,18,23,18,20,10,20,20,28,19,28,18,28,28,28,28,28,28,28,20,28,28,37]} 1. e4 {[%emt 0:00:03]} e5 {[%emt 0:00:21]} 2. Nf3 {[%emt 0:00:05]} Nc6 {[%emt 0:00:07]} 3. Nc3 {[%emt 0:00:07]} Nf6 {[%emt 0:00:33]} 4. d4 {[%emt 0:00:08]} exd4 {[%emt 0:05:02]} 5. Nxd4 {[%emt 0:00:06]} Bb4 {[%emt 0:06:48]} 6. Nxc6 {[%emt 0:00:17]} bxc6 {[%emt 0:00:09]} 7. Bd3 {[%emt 0:00:04]} O-O {[%emt 0:01:15]} 8. O-O {[%emt 0:00:09]} d5 {[%emt 0:00:12]} 9. exd5 {[%emt 0:00:07]} cxd5 {[%emt 0:03:15]} 10. Bg5 {[%emt 0:01:42]} c6 {[%emt 0:01:20]} 11. Qf3 {[%emt 0:01:10]} Bd6 {[%emt 0:08:30]} 12. h3 {[%emt 0:07:28]} Rb8 {[%emt 0:02:18]} 13. Rab1 {[%emt 0:02:23]} h6 {[%emt 0:13:57]} 14. Bxf6 {[%emt 0:02:44]} Qxf6 {[%emt 0:00:15]} 15. Qxf6 {[%emt 0:00:05]} gxf6 {[%emt 0:00:07] The position is equal.} 16. Nd1 {[%emt 0:06:14]} Re8 {[%emt 0:14:59]} 17. Ne3 {[%emt 0:01:09]} a5 {[%emt 0:08:36]} 18. Nf5 {[%emt 0:01:52]} Bxf5 {[%emt 0:04:40]} 19. Bxf5 {[%emt 0:00:05]} Rb7 {[%emt 0:00:55]} 20. b3 {[%emt 0:00:50]} Bb4 {[%emt 0:00:26]} 21. Rbd1 {[%emt 0:00:41]} Re5 {[%emt 0:00:13]} 22. Bd3 {[%emt 0:02:17]} Bc3 {[%emt 0:05:21]} 23. g3 {[%emt 0:04:09]} Kg7 {[%emt 0:03:15]} 24. Kg2 {[%emt 1:08:35]} Rbe7 {[%emt 0:19:56]} 25. Rb1 {[%emt 0:00:00]} Be1 {[%emt 0:00:00]} 26. Kf3 {[%emt 0:00:00]} f5 {[%emt 0:00:00]} 27. Kg2 {[%emt 0:00:00][%cal Od3f5]} Kf6 {[%emt 0:00:00]} 28. a3 {[%emt 0:00:00]} c5 {[%emt 0:00:00]} 29. Bb5 {[%emt 0:00:00]} d4 {[%emt 0:00:00]} 30. Kf3 {[%emt 0:00:00]} h5 {[%emt 0:00:00]} 31. Bd3 {[%emt 0:00:00]} Bc3 {[%emt 0:00:00]} 32. Rg1 {[%emt 0:00:00]} Re1 {[%emt 0:00:31] Weighted Error Value: White=0.04 (flawless) /Black=0.05 (flawless) .  OK:         	White=8     	Black=4} 1/2-1/2

[Event "Czech Extraliga 2023-24"]
[Site "Czech Republic"]
[Date "2024.01.28"]
[Round "6.3"]
[White "NOV4 Navara David GM"]
[Black "BSS4 Antoniewski Rafal GM"]
[Result "1/2-1/2"]
[ECO "E12"]
[WhiteElo "2689"]
[BlackElo "2485"]
[Annotator "TA"]
[PlyCount "79"]
[EventDate "2023.10.14"]
[EventCountry "CZE"]
[SourceTitle "playchess.com"]
[Source "ChessBase"]
[SourceQuality "1"]
[TimeControl "40/5400+30:1800+30"]

{[%evp 28,79,0,0,0,-13,0,0,0,-14,0,0,0,0,0,0,0,0,0,0,0,0,0,0,0,-10,-9,-9,-5,-9,-3,-4,0,0,0,-67,-52,-79,-84,-101,0,-96,-101,-112,-33,-68,0,-56,-54,-104,0,-55,0,-121]} 1. d4 {[%emt 0:00:01]} Nf6 {[%emt 0:00:17]} 2. c4 {[%emt 0:00:04]} b6 {[%emt 0:00:45]} 3. Nc3 {[%emt 0:02:16]} Bb7 {[%emt 0:00:27]} 4. Qc2 {[%emt 0:00:10]} d5 {[%emt 0:00:36]} 5. cxd5 {[%emt 0:00:09]} Nxd5 {[%emt 0:00:05]} 6. e4 {[%emt 0:02:50]} Nxc3 {[%emt 0:01:20]} 7. bxc3 {[%emt 0:00:08]} e6 {[%emt 0:00:47]} 8. Nf3 {[%emt 0:00:27]} Be7 {[%emt 0:00:33]} 9. Bb5+ {[%emt 0:05:35]} c6 {[%emt 0:00:18]} 10. Bd3 {[%emt 0:00:04]} c5 {[%emt 0:00:03]} 11. O-O {[%emt 0:00:39]} cxd4 {[%emt 0:01:11]} 12. cxd4 {[%emt 0:00:09]} O-O {[%emt 0:00:04]} 13. Bb2 {[%emt 0:07:05]} Nc6 {[%emt 0:01:29]} 14. a3 {[%emt 0:09:03]} Rc8 {[%emt 0:00:20]} 15. Qe2 {[%emt 0:00:05]} Bf6 {[%emt 0:00:04]} 16. Qe3 {[%emt 0:13:08]} Na5 {[%emt 0:05:08]} 17. Rac1 {[%emt 0:01:33]} Qd7 {[%emt 0:13:23]} 18. h4 {[%emt 0:03:21]} Rxc1 {[%emt 0:03:02]} 19. Rxc1 {[%emt 0:00:55]} Rc8 {[%emt 0:00:43]} 20. h5 {[%emt 0:02:27]} Rxc1+ {[%emt 0:08:37]} 21. Qxc1 {[%emt 0:12:44]} h6 {[%emt 0:26:23]} 22. Qf4 {[%emt 0:02:53]} Qc8 {[%emt 0:04:25]} 23. a4 {[%emt 0:05:18]} Nc4 {[%emt 0:04:01]} 24. Bc3 {[%emt 0:04:23]} Na5 {[%emt 0:08:43]} 25. Bxa5 {[%emt 0:17:02]} bxa5 {[%emt 0:00:07]} 26. e5 {[%emt 0:00:16]} Bd8 {[%emt 0:00:42] Threatens to win with ...Qc3. This pair of bishops is nice.} 27. Be4 $1 {[%emt 0:00:15]} Bb6 {[%emt 0:00:30]} 28. g4 {[%emt 0:04:28]} Bd8 {[%emt 0:04:17]} 29. Kg2 $1 {[%emt 0:05:46]} Qd7 {[%emt 0:03:41]} 30. Bxb7 {[%emt 0:00:43]} Qxb7 $11 {[%emt 0:00:03][%mdl 4096] Endgame. KQB-KQN} 31. Kg3 {[%emt 0:01:29]} (31. Qc1 $11) 31... Qb3 $15 {[%emt 0:08:59]} 32. Qe4 {[%emt 0:00:04]} Qxa4 {[%emt 0:00:25]} 33. Qb7 {[%emt 0:00:21] Dodges Qd7} Kf8 {[%emt 0:03:35]} (33... Qa3 $17 34. Qa8 Qe7) 34. Qxa7 {[%emt 0:01:06] [#]} (34. Qb1 $1 $11 {remains equal.}) 34... Qc6 $1 $17 {[%emt 0:00:20]} 35. Qb8 {[%emt 0:00:28]} Qd7 {[%emt 0:01:12]} ({Black should play} 35... Ke8 $17 36. Qa7 Qb5 (36... a4 37. d5 $17)) 36. Qa8 {[%emt 0:00:28]} Ke7 {[%emt 0:00:54]} (36... Qd5 $15 37. Qa6 Kg8) 37. Kf4 {[%emt 0:00:29]} (37. Qe4 $11) 37... Qc7 $15 {[%emt 0:00:33]} 38. Kg3 {[%emt 0:00:28] [#]} (38. Qa6 $15) 38... Qd7 {[%emt 0:00:35]} (38... Qc4 $1 $17 39. Qa7+ Ke8) 39. Kf4 {[%emt 0:00:22]} Qc7 {[%emt 0:00:08]} (39... Qd5 $15 40. Qxd5 exd5) 40. Kg3 {[%emt 0:00:08] Weighted Error Value: White=0.19 (very precise) /Black=0.20 (precise) .  Mistake:       	White=4     	Black=5      Inaccurate:     	White=2     	---        OK:         	White=7     	Black=6      Best:        	White=2     	Black=1      Strong:       	White=2     	Black=1} 1/2-1/2